bitfinex/quotes_ETHUSD_20260207
["timestamp","ask_amount","ask_price","bid_price","bid_amount"]
[1770476412583,1.04736916,2018.5,2017.5,0.05414452]
[1770476412795,0.27180624,2018.5,2017.5,0.05414452]
[1770476412988,0.27180624,2018.5,2017.6,1.23909595]
[1770476414073,0.27180624,2018.5,2017.6,1.29324047]
[1770476415390,0.27180624,2018.5,2017.9,0.05414452]
[1770476417336,0.27180624,2018.5,2017.9,1.29303687]
[1770476417811,0.27180624,2018.5,2017.9,1.23889235]
[1770476418481,0.27180624,2018.5,2017.5,2.06299338]
[1770476418695,0.27180624,2018.5,2017.8,1.23896949]
[1770476419072,0.27180624,2018.5,2018.1,0.05414452]
[1770476419319,0.34264879,2018.7,2018.2,1.23872757]
[1770476419620,0.34264879,2018.7,2018.4,0.05414452]
[1770476419987,0.29730643,2018.7,2018.4,0.05414452]
[1770476420326,1.23799244,2019.4,2018.4,0.05414452]
[1770476420483,1.23796757,2019.5,2018.4,0.05414452]
[1770476420815,2.62494293,2019.5,2018.4,0.05414452]
[1770476421176,2.62494293,2019.5,2018.5,1.23854347]
[1770476421413,12.63160887,2019.7,2018.7,0.05414452]
[1770476421610,1.57379418,2020.0,2019.0,0.05414452]
[1770476421875,1.57379418,2020.0,2019.0,2.1171379]
[1770476422891,0.33613019,2020.0,2019.4,0.05414452]
[1770476423291,0.33613019,2020.0,2019.5,1.23793018]
[1770476423513,0.33613019,2020.0,2019.7,0.05414452]
[1770476424185,1.23725825,2020.6,2019.7,0.05414452]
[1770476425198,4.94712312,2021.4,2020.1,1.23756249]
[1770476425617,4.94712312,2021.4,2020.3,0.05414452]
[1770476425816,0.81842939,2021.3,2020.3,0.05414452]
[1770476426117,0.81842939,2021.3,2020.1,1.23756249]
[1770476426320,0.81842939,2021.3,2020.3,0.05414452]
[1770476426625,0.81842939,2021.3,2020.4,0.05414452]
[1770476427288,2.05528621,2021.3,2020.5,1.23731749]
[1770476427496,0.70024093,2021.2,2020.5,1.23731749]
[1770476427698,1.23679272,2021.4,2020.5,1.23731749]
[1770476427901,0.33619562,2021.5,2021.0,0.05414452]
[1770476428201,0.33619562,2021.5,2021.4,0.05414452]
[1770476428518,0.33619562,2021.5,2021.0,2.06299338]
[1770476428936,0.33619562,2021.5,2021.0,1.3646681]
[1770476429252,0.33619562,2021.5,2020.6,2.1171379]
[1770476429448,0.002,2022.1,2021.2,2.1171379]
[1770476429734,0.002,2022.5,2021.8,0.05414452]
[1770476429952,0.002,2022.5,2021.9,2.06299338]
[1770476430099,0.1044,2023.2,2021.8,0.05414452]
[1770476430100,0.002,2023.2,2022.2,2.06299338]
[1770476430305,1.23768955,2023.2,2022.2,2.06299338]
[1770476430605,0.61803546,2023.1,2022.2,2.06299338]
[1770476430800,0.61803546,2023.1,2022.4,0.05414452]
[1770476431221,0.61803546,2023.1,2021.8,2.06299338]
[1770476431424,1.23578843,2023.0,2022.1,0.05414452]
[1770476431740,5.56118919,2023.1,2022.1,0.05414452]
[1770476431741,1.85380176,2023.1,2022.1,0.05414452]
[1770476431899,0.67985499,2023.0,2022.1,2.1171379]
[1770476432104,1.23769794,2023.2,2022.4,0.05414452]
[1770476432336,1.23769794,2023.2,2022.1,2.1171379]
[1770476433034,1.23769794,2023.2,2021.9,3.35359865]
[1770476433532,0.002,2023.2,2022.0,2.06299338]
[1770476433724,1.74869972,2023.2,2022.0,2.06299338]
[1770476434118,1.74869972,2023.2,2022.2,0.05414452]
[1770476434813,1.74869972,2023.2,2022.0,2.06299338]
[1770476435018,1.74869972,2023.2,2022.2,0.05414452]
[1770476435337,1.23572734,2023.1,2022.1,1.23633846]
[1770476435634,0.29844271,2023.0,2022.1,1.23633846]
[1770476437434,1.23584952,2022.9,2022.0,3.29935369]
[1770476437926,1.23584952,2022.9,2022.0,1.23639798]
[1770476438537,1.23584952,2022.9,2021.9,1.23641688]
[1770476439229,1.23584952,2022.9,2022.0,3.36806173]
[1770476439434,1.88367471,2022.8,2022.0,3.36806173]
[1770476439931,1.88368773,2022.8,2022.0,3.36806173]
[1770476440337,1.88368773,2022.8,2021.1,2.13167284]
[1770476440338,7.57789294,2022.6,2021.1,2.13167284]
[1770476440636,3.99780341,2022.8,2021.5,1.29084894]
[1770476440637,1.88368773,2022.8,2021.5,1.29084894]
[1770476440808,1.88368773,2022.8,2021.2,2.13167284]
[1770476440809,3.00823646,2022.7,2021.2,2.13167284]
[1770476441009,7.57789294,2022.4,2020.9,2.13167284]
[1770476441328,1.23621618,2022.3,2021.0,3.42278583]
[1770476441630,1.23621618,2022.3,2021.3,2.13167284]
[1770476441830,0.61810809,2022.2,2021.3,2.13167284]
[1770476442241,0.61810809,2022.2,2021.0,1.23697692]
[1770476442414,0.61810809,2022.2,2021.0,1.29115054]
[1770476442616,2.73222377,2022.2,2020.9,2.13167284]
[1770476443234,2.73222377,2022.2,2020.7,1.29129586]
[1770476443435,1.2363996,2022.0,2020.7,3.4229687]
[1770476444512,1.2363996,2022.0,2020.8,2.13167284]
[1770476445641,1.2363996,2022.0,2020.8,3.3688006]
[1770476445847,1.2363996,2022.0,2021.0,2.18581736]
[1770476446158,1.85438556,2022.2,2021.3,2.18581736]
[1770476446328,0.55630094,2022.1,2021.3,2.18581736]
[1770476446513,0.55630094,2022.1,2021.3,2.13167284]
[1770476446707,0.55630094,2022.1,2020.9,2.13167284]
[1770476446932,0.55630094,2022.1,2021.1,2.18581736]
[1770476447658,1.2363996,2022.0,2021.1,1.23694519]
[1770476447861,1.2363996,2022.0,2021.0,1.23697929]
[1770476448061,1.2363996,2022.0,2020.8,3.36876475]
[1770476448256,1.2363996,2022.0,2021.0,1.29115026]
[1770476448436,1.2363996,2022.0,2020.9,3.36871671]
[1770476448757,0.6181998,2021.9,2021.1,1.23694553]
[1770476448960,0.6181998,2021.9,2021.0,2.13167284]
[1770476449163,0.6181998,2021.9,2021.0,1.2369803]
[1770476449662,1.23652191,2021.8,2020.8,3.36880664]
[1770476450537,1.85467583,2021.9,2021.0,0.05414452]
[1770476450740,1.05103452,2021.8,2020.7,0.05414452]
[1770476450950,1.05103452,2021.8,2020.7,1.23717945]
[1770476451334,1.05103452,2021.8,2020.6,7.13459748]
[1770476451335,2.11411568,2021.7,2020.3,3.36908385]
[1770476451529,2.11411568,2021.7,2020.3,2.13167284]
[1770476451764,3.35075992,2021.6,2020.3,3.36910833]
[1770476451961,0.82973369,2021.5,2020.3,3.36910833]
[1770476452854,8.40762663,2021.5,2020.3,2.13167284]
[1770476453045,10.52174231,2021.5,2020.3,2.13167284]
[1770476453245,2.94384937,2021.5,2020.2,1.23746992]
[1770476453760,1.23676659,2021.4,2020.0,7.08208463]
[1770476454061,10.60477685,2021.3,2020.0,2.13167284]
[1770476454436,10.60477685,2021.3,2020.8,0.001]
[1770476454633,10.60477685,2021.3,2020.0,2.13167284]
[1770476455435,10.58720776,2021.3,2020.0,2.13167284]
[1770476455769,1.78890268,2021.2,2020.0,2.13167284]
[1770476455942,1.23695017,2021.1,2020.0,2.13167284]
[1770476456758,1.23695017,2021.1,2020.1,0.05414452]
[1770476457359,1.23695017,2021.1,2020.1,2.18581736]
[1770476457963,1.23695017,2021.1,2020.2,1.23750123]
[1770476458261,1.23695017,2021.1,2020.2,3.71150593]
[1770476459768,1.23695017,2021.1,2020.3,2.13167284]
[1770476459943,1.23695017,2021.1,2020.4,1.23737873]
[1770476460272,1.23695017,2021.1,2020.0,2.13167284]
[1770476460450,1.23695017,2021.1,2020.2,1.23749693]
[1770476460767,0.79736536,2021.0,2020.2,1.23749693]
[1770476461694,0.82973369,2021.5,2020.7,2.13167284]
[1770476461978,1.23658307,2021.7,2020.7,2.18581736]
[1770476462176,10.15206344,2022.2,2020.7,2.18581736]
[1770476462177,1.23633846,2022.1,2020.9,2.13167284]
[1770476462338,1.23633846,2022.1,2021.0,2.18581736]
[1770476462544,1.23633846,2022.1,2021.0,2.13167284]
[1770476462746,1.42196401,2022.0,2020.9,2.13167284]
[1770476462941,1.42196401,2022.0,2021.2,2.13167284]
[1770476463183,1.23633846,2022.1,2021.2,2.13167284]
[1770476463748,1.23621618,2022.3,2021.3,2.18581736]
[1770476464060,8.03794776,2022.5,2021.3,3.36846777]
[1770476464468,8.03794776,2022.5,2021.3,3.42261229]
[1770476464676,0.80379478,2022.4,2021.3,3.42261229]
[1770476464873,0.80379478,2022.4,2021.4,2.13167284]
[1770476465282,1.23797172,2022.7,2021.4,2.13167284]
[1770476465493,1.23797172,2022.7,2021.6,2.18581736]
[1770476466086,1.23797172,2022.7,2021.7,1.23658307]
[1770476466284,1.23797172,2022.7,2021.6,7.13214965]
[1770476466285,1.23797172,2022.7,2021.6,3.36827114]
[1770476466451,1.23797172,2022.7,2021.7,2.21192436]
[1770476466786,1.42198064,2022.6,2021.7,2.21192436]
[1770476467080,0.002,2022.5,2021.7,2.21192436]
[1770476467785,0.002,2022.5,2022.0,2.21192436]
[1770476468281,0.002,2022.5,2022.1,1.23633846]
[1770476468481,0.002,2022.7,2022.2,2.21192436]
[1770476468798,0.002,2022.7,2021.9,4.94535384]
[1770476468799,0.002,2022.7,2021.9,2.21192436]
[1770476469089,0.002,2022.7,2022.1,2.21192436]
[1770476469252,0.002,2022.7,2022.3,0.05414452]
[1770476469458,0.002,2022.7,2022.3,2.21192436]
[1770476469654,0.002,2022.7,2022.4,2.21192436]
[1770476470584,0.002,2022.9,2022.5,1.23609394]
[1770476470781,0.002,2022.9,2022.6,2.19520489]
[1770476471369,0.002,2023.2,2022.9,2.19520489]
[1770476472062,0.002,2023.2,2023.1,0.05414452]
[1770476472381,0.002,2023.2,2022.9,2.19520489]
[1770476472597,0.006,2023.2,2022.9,3.4310462]
[1770476472796,0.006,2023.2,2022.9,2.19520489]
[1770476472990,0.006,2023.2,2022.9,3.43104517]
[1770476473187,0.002,2023.2,2022.9,2.19520489]
[1770476473496,0.002,2023.6,2022.8,0.05414452]
[1770476473497,0.002,2023.6,2023.1,3.48507675]
[1770476473700,0.002,2023.6,2023.2,2.19520489]
[1770476473897,0.004,2023.3,2022.9,3.4310195]
[1770476474078,0.004,2023.3,2023.0,1.23576786]
[1770476474696,0.004,2023.3,2023.0,1.28991238]
[1770476474883,0.004,2023.2,2023.0,1.28991238]
[1770476475796,0.004,2023.1,2022.8,1.2359038]
[1770476475997,0.004,2023.3,2022.4,7.13977468]
[1770476476223,0.004,2023.3,2022.7,1.23594748]
[1770476476370,0.004,2023.2,2022.5,3.43125452]
[1770476476575,0.004,2023.2,2022.6,1.23603282]
[1770476476771,0.004,2023.1,2022.6,3.48538223]
[1770476476981,0.004,2023.3,2022.6,3.48538223]
[1770476477502,0.004,2023.2,2022.5,1.23604953]
[1770476477822,0.004,2023.2,2022.5,1.29019405]
[1770476478029,0.004,2023.2,2022.5,1.23604953]
[1770476478248,8.03794776,2023.2,2022.0,2.19520489]
[1770476478393,1.02672849,2023.1,2022.1,1.23633388]
[1770476478588,1.23591061,2022.8,2021.7,1.23653284]
[1770476478905,1.23591061,2022.8,2021.7,0.05414452]
[1770476479109,1.23591061,2022.8,2021.6,3.48596083]
[1770476479110,0.004,2022.7,2021.6,3.48596083]
[1770476479428,8.03794776,2022.6,2021.4,1.23674939]
[1770476479590,8.04194776,2022.6,2021.5,1.236701]
[1770476479791,0.004,2022.5,2021.6,1.23664007]
[1770476480424,0.004,2022.5,2021.7,2.24934941]
[1770476480627,0.004,2022.5,2021.5,1.23667419]
[1770476480838,0.004,2022.5,2021.6,1.23664012]
[1770476481043,0.004,2022.5,2021.5,1.23666795]
[1770476481593,0.004,2022.5,2021.3,2.19520489]
[1770476481911,3.03753194,2022.5,2021.2,1.23685365]
[1770476482117,3.03753194,2022.5,2021.2,1.23685407]
[1770476482316,8.03794776,2022.0,2021.0,0.001]
[1770476482522,2.22933716,2022.2,2021.0,1.23800498]
[1770476482699,1.2363996,2022.0,2021.0,0.001]
[1770476482902,1.2363996,2022.0,2020.8,4.94951898]
[1770476482903,10.26728492,2021.8,2020.8,0.001]
[1770476483213,8.03794776,2021.5,2020.8,0.001]
[1770476484031,0.003,2021.4,2020.8,0.001]
[1770476484407,8.03794776,2021.5,2020.8,0.001]
[1770476484606,8.03794776,2021.5,2020.2,2.19520489]
[1770476484607,8.03794776,2021.2,2019.8,2.19520489]
[1770476484827,8.03794776,2021.2,2019.9,1.23868503]
[1770476485127,1.23682778,2021.3,2020.0,2.24934941]
[1770476485128,0.002,2021.1,2020.0,2.24934941]
[1770476485541,0.002,2021.0,2020.0,2.24934941]
[1770476485738,0.002,2020.9,2020.0,2.24934941]
[1770476485923,1.23682778,2021.3,2020.0,2.24934941]
[1770476485924,0.002,2021.2,2020.1,0.34880344]
[1770476486136,8.03794776,2020.9,2019.9,0.001]
[1770476486507,2.33173716,2021.2,2019.9,0.001]
[1770476486508,0.002,2020.8,2019.9,0.001]
[1770476486725,0.002,2021.0,2019.9,0.001]
[1770476487543,0.002,2021.0,2020.0,0.05414452]
[1770476487919,0.002,2021.0,2020.0,2.24934941]
[1770476488119,0.002,2021.0,2020.0,2.19520489]
[1770476488507,0.002,2021.0,2020.1,2.24934941]
[1770476488916,0.002,2021.0,2020.1,2.19520489]
[1770476489115,0.002,2021.0,2020.1,3.43274935]
[1770476489534,0.002,2021.0,2020.1,3.48689387]
[1770476489737,0.002,2021.0,2020.4,2.24934941]
[1770476489912,0.2335703,2021.9,2020.7,2.24934941]
[1770476489913,1.23646075,2021.9,2020.7,2.24934941]
[1770476490113,9.06467625,2022.1,2021.1,0.05414452]
[1770476490114,0.002,2021.8,2021.1,0.05414452]
[1770476490308,0.002,2022.0,2021.1,0.05414452]
[1770476490544,1.23825759,2022.3,2021.1,2.24934941]
[1770476490729,0.61830384,2022.2,2021.1,2.24934941]
[1770476491042,0.61830384,2022.2,2020.8,8.03794776]
[1770476491043,0.002,2022.2,2020.8,2.19520489]
[1770476491224,8.03994776,2022.1,2020.9,1.29121711]
[1770476491414,0.002,2022.1,2020.9,1.29121711]
[1770476491911,8.79080987,2022.3,2020.9,1.29121711]
[1770476492111,0.002,2022.2,2020.9,1.29121711]
[1770476492532,0.002,2022.2,2020.9,3.486422]
[1770476492936,0.002,2022.1,2021.2,0.05414452]
[1770476493121,0.002,2022.1,2021.3,1.23682778]
[1770476494449,0.002,2022.0,2021.3,1.2909723]
[1770476494757,0.002,2022.2,2021.4,2.19520489]
[1770476495243,0.002,2022.1,2021.5,1.23670541]
[1770476495446,0.002,2022.1,2021.5,3.4319103]
[1770476496932,0.002,2022.0,2021.5,3.4319103]
[1770476497145,0.002,2022.0,2021.6,2.27761644]
[1770476497323,0.002,2022.3,2022.0,1.2363996]
[1770476497723,0.002,2022.3,2021.5,1.2366623]
[1770476498026,0.002,2022.3,2021.6,1.23663325]
[1770476498231,0.002,2022.3,2021.5,1.23666492]
[1770476498551,0.002,2022.3,2021.7,1.23656881]
[1770476498730,0.002,2022.3,2021.8,1.23648752]
[1770476498934,0.002,2022.3,2021.8,1.23647834]
[1770476499453,0.002,2022.3,2021.7,7.16971187]
[1770476500249,0.002,2022.3,2021.9,0.05414452]
[1770476500745,0.002,2022.3,2021.9,2.27761644]
[1770476501654,0.002,2022.3,2022.0,1.2363996]
[1770476501857,0.002,2022.3,2022.1,2.22347192]
[1770476502063,0.002,2022.3,2022.2,0.05414452]
[1770476503127,0.002,2022.3,2022.1,2.22347192]
[1770476503529,0.002,2022.3,2022.2,1.23627732]
[1770476504245,0.002,2022.3,2022.0,1.23638742]
[1770476504651,0.002,2022.3,2021.6,5.0015464]
[1770476504837,0.002,2022.3,2021.9,1.23645653]
[1770476505034,0.002,2022.3,2022.1,1.23632838]
[1770476505740,0.002,2022.3,2022.0,1.2363996]
[1770476505936,0.002,2022.3,2021.9,1.23646059]
[1770476506128,0.002,2022.3,2021.9,1.29060511]
[1770476506863,0.002,2022.3,2021.9,3.51407703]
[1770476508562,0.002,2022.3,2022.0,2.22347192]
[1770476508770,0.002,2023.1,2022.3,2.22347192]
[1770476508954,0.002,2023.1,2022.6,2.27761644]
[1770476508955,0.002,2023.0,2022.6,2.27761644]
[1770476509268,0.002,2023.0,2022.9,0.05414452]
[1770476509574,0.002,2023.1,2022.9,0.05414452]
[1770476509732,0.002,2023.0,2022.8,2.22347192]
[1770476510152,0.002,2023.1,2022.8,2.22347192]
[1770476510380,0.004,2023.1,2022.8,2.22347192]
[1770476510794,0.002,2023.0,2022.7,1.29011624]
[1770476510962,0.002,2023.0,2022.7,3.51358816]
[1770476511570,0.002,2023.1,2022.8,2.22347192]
[1770476511767,0.004,2023.1,2023.0,1.23578843]
[1770476512292,1e-08,2023.2,2023.0,1.28993295]
[1770476512865,0.002,2023.4,2023.1,2.22347192]
[1770476513082,0.002,2023.4,2023.3,0.05414452]
[1770476513482,0.002,2023.4,2023.1,2.22347192]
[1770476513664,0.002,2024.1,2023.4,1.23554413]
[1770476514208,0.002,2024.1,2023.8,2.22347192]
[1770476514493,0.002,2024.2,2023.9,0.05414452]
[1770476514783,0.002,2024.2,2023.9,2.27761644]
[1770476515804,0.002,2024.2,2023.9,1.23522092]
[1770476517163,0.002,2024.2,2023.7,4.94136001]
[1770476517367,0.002,2024.2,2023.7,1.23532089]
[1770476517573,0.002,2024.2,2023.9,1.23522416]
[1770476518019,0.002,2024.2,2023.7,1.23536097]
[1770476518219,0.002,2024.2,2023.9,2.27761644]
[1770476518375,0.002,2024.2,2023.9,0.35129774]
[1770476518574,0.002,2024.2,2023.7,1.23536097]
[1770476521605,0.002,2024.2,2023.6,1.23539407]
[1770476522107,0.002,2024.2,2023.6,1.23541502]
[1770476522685,0.002,2024.2,2023.5,1.23543759]
[1770476522896,0.002,2024.2,2023.6,1.23541709]
[1770476523094,0.002,2024.2,2023.5,1.23543461]
[1770476523492,0.002,2024.2,2023.1,7.16628152]
[1770476523698,0.002,2024.2,2023.3,1.23560188]
[1770476523699,2.17549087,2024.2,2023.3,1.23560188]
[1770476523894,0.002,2024.2,2023.6,1.23541885]
[1770476524091,0.002,2024.2,2023.8,0.05414452]
[1770476524426,0.002,2024.2,2023.6,1.2353778]
[1770476524720,0.002,2024.2,2023.6,0.05414452]
[1770476524919,0.002,2024.2,2023.4,3.45901605]
[1770476525119,0.002,2024.2,2023.1,2.22347192]
[1770476525323,0.002,2024.2,2023.3,1.28973535]
[1770476525485,0.002,2024.2,2023.3,1.23559083]
[1770476525686,0.002,2024.2,2023.3,3.51320727]
[1770476526692,0.002,2024.2,2023.3,1.28973535]
[1770476526893,0.002,2024.2,2023.2,1.23562469]
[1770476527130,0.002,2024.2,2023.3,1.23560363]
[1770476527295,0.002,2024.2,2023.2,1.23562857]
[1770476527494,0.002,2024.2,2023.3,1.23560141]
[1770476527802,2.05476614,2024.1,2023.1,1.23571888]
[1770476528122,2.05476614,2024.0,2023.0,0.001]
[1770476528311,2.05676614,2024.2,2023.0,0.001]
[1770476528520,2.05676614,2024.2,2023.1,1.23572501]
[1770476528714,2.05676614,2024.2,2023.0,1.23674699]
[1770476529011,1.23511684,2024.1,2023.1,1.2356963]
[1770476529410,2.05676614,2024.0,2023.0,0.001]
[1770476529585,0.002,2024.0,2023.0,1.23677765]
[1770476529787,0.002,2024.0,2023.0,0.001]
[1770476529994,9.4477571,2023.6,2022.8,0.001]
[1770476530211,2.05476614,2023.4,2022.8,0.001]
[1770476530625,0.94477571,2023.5,2022.8,0.001]
[1770476530821,1.23536097,2023.7,2022.8,0.001]
[1770476531003,3.46238919,2023.7,2022.8,0.001]
[1770476531400,1.23536097,2023.7,2022.8,0.001]
[1770476532006,3.46238919,2023.7,2022.8,0.001]
[1770476532893,1.23536097,2023.7,2022.8,0.001]
[1770476533408,0.62792048,2023.6,2022.8,0.001]
[1770476534231,1.23536097,2023.7,2022.9,0.05414452]
[1770476534720,1.23536097,2023.7,2022.9,2.14144727]
[1770476534893,1.23717786,2024.0,2023.0,1.23578843]
[1770476535097,1.23717786,2024.0,2023.0,3.32309118]
[1770476535295,1.85514277,2024.0,2023.0,3.32309118]
[1770476535515,0.002,2024.0,2023.2,0.05414452]
[1770476535924,0.002,2024.0,2023.2,2.14144727]
[1770476536837,0.002,2024.0,2023.5,2.14144727]
[1770476536998,0.002,2024.0,2023.6,1.23542202]
[1770476537495,0.002,2024.0,2023.6,1.28956654]
[1770476537715,0.002,2024.0,2023.6,1.23542202]
[1770476537921,0.002,2024.0,2023.6,1.28956654]
[1770476538818,0.002,2024.0,2023.6,3.37686929]
[1770476539421,0.002,2024.0,2023.7,2.08730275]
[1770476541255,0.002,2024.0,2023.8,1.23529993]
[1770476541748,0.002,2024.0,2023.6,1.23641009]
[1770476542647,0.002,2024.0,2023.7,1.23536024]
[1770476543329,0.002,2024.0,2023.6,1.23642202]
[1770476543728,0.002,2024.0,2023.6,0.001]
[1770476545621,0.002,2024.0,2023.4,0.001]
[1770476546023,0.96440192,2024.0,2023.4,0.001]
[1770476547774,0.96440192,2024.0,2022.8,0.001]
[1770476547775,9.62001918,2023.6,2022.8,0.001]
[1770476547988,2.22702822,2023.6,2022.8,0.001]
[1770476548185,10.85525807,2023.9,2022.8,0.001]
[1770476548372,1.67606156,2023.8,2022.8,0.001]
[1770476548686,3.90308978,2023.8,2022.8,0.001]
[1770476549675,1.23542202,2023.6,2022.8,0.001]
[1770476550184,3.46245024,2023.6,2022.8,0.001]
[1770476550856,2.22702822,2023.5,2022.8,0.001]
[1770476551062,0.34624502,2023.4,2022.8,0.001]
[1770476551250,2.22702822,2023.3,2022.8,0.001]
[1770476551460,2.22702822,2023.3,2022.5,0.001]
[1770476551661,1.23578843,2023.0,2022.5,0.001]
[1770476552982,4.94315373,2023.2,2022.5,0.001]
[1770476552983,12.33614469,2023.4,2022.5,0.001]
[1770476552984,0.1354123,2027.4,2025.5,2.08730275]
[1770476553165,7.39299096,2027.2,2025.6,2.49090251]
[1770476553495,7.65526929,2027.3,2025.5,2.07275569]
[1770476553496,0.05414452,2026.5,2025.5,2.07275569]
[1770476553660,0.05414452,2026.3,2025.7,2.08730275]
[1770476553992,0.05414452,2026.9,2025.8,7.57433291]
[1770476554196,0.05414452,2026.8,2026.6,2.63766361]
[1770476554362,0.05414452,2026.8,2026.2,4.42396514]
[1770476554363,0.05414452,2026.5,2026.2,4.42396514]
[1770476554567,0.05414452,2026.8,2026.1,4.42396514]
[1770476554780,0.05414452,2026.2,2026.1,4.42396514]
[1770476554984,0.05414452,2026.2,2026.1,1.75858491]
[1770476555183,0.05414452,2026.5,2026.1,1.31682472]
[1770476555391,0.05414452,2026.2,2025.5,3.32156554]
[1770476555590,0.05414452,2026.2,2025.6,1.61680564]
[1770476555794,0.05414452,2026.2,2025.7,1.23414128]
[1770476555990,0.05414452,2027.1,2026.0,3.17571656]
[1770476556178,0.1354123,2027.4,2026.5,1.3164333]
[1770476556380,0.1354123,2027.4,2026.0,0.1024]
[1770476556381,0.05414452,2026.9,2026.0,3.17571656]
[1770476556564,0.05414452,2026.9,2025.8,7.39299096]
[1770476556565,0.05414452,2026.9,2026.1,0.41549288]
[1770476556760,0.05414452,2026.9,2025.8,0.1024]
[1770476556965,0.05414452,2026.9,2025.7,7.86385784]
[1770476557893,1.23333868,2027.1,2025.7,7.86385784]
[1770476558072,1.28740693,2027.2,2025.8,3.17571656]
[1770476558277,0.86803979,2027.1,2025.9,3.96210234]
[1770476558470,0.92218431,2027.1,2025.9,3.96210234]
[1770476558869,0.92218431,2027.1,2026.0,3.17571656]
[1770476559067,0.05414452,2027.1,2026.0,3.17571656]
[1770476559490,0.05414452,2027.2,2026.0,3.17571656]
[1770476560199,0.1354123,2027.4,2026.6,3.17571656]
[1770476560368,0.1354123,2027.4,2026.7,3.452]
[1770476560688,0.1354123,2027.4,2026.7,6.62771656]
[1770476560889,0.1354123,2027.4,2026.7,7.94838292]
[1770476561294,0.1354123,2027.4,2026.8,3.17571656]
[1770476562194,0.1354123,2027.4,2026.9,1.23341062]
[1770476562495,0.1354123,2027.4,2026.8,1.2334337]
[1770476563687,0.0754123,2027.4,2026.8,1.2334337]
[1770476565289,0.05414452,2027.3,2026.7,4.68549022]
[1770476565703,0.05414452,2027.3,2026.7,3.452]
[1770476565874,0.05414452,2027.3,2026.7,4.6855318]
[1770476566077,0.05414452,2027.0,2026.6,1.2335927]
[1770476566272,0.002,2027.2,2026.6,1.2335927]
[1770476566502,0.002,2027.2,2026.6,2.19541306]
[1770476566702,0.002,2027.2,2026.6,1.2335927]
[1770476566903,0.05414452,2027.0,2026.6,1.2335927]
[1770476567139,0.05414452,2027.0,2025.9,14.0375771]
[1770476567340,0.05414452,2026.7,2026.2,1.23380045]
[1770476567504,0.05414452,2026.7,2026.2,1.23379115]
[1770476567703,0.05414452,2027.0,2026.0,8.38576516]
[1770476567904,0.05414452,2026.4,2025.9,1.23497764]
[1770476568338,0.05414452,2026.4,2025.9,0.001]
[1770476568639,1.2878831,2026.4,2025.9,0.001]
[1770476568938,0.05414452,2026.1,2025.9,0.001]
[1770476570331,1.28805308,2026.1,2025.9,0.001]
[1770476570497,1.28805308,2026.1,2025.7,0.001]
[1770476570701,0.05414452,2025.5,2024.8,0.001]
[1770476570901,0.05414452,2025.7,2024.8,0.001]
[1770476571130,0.05414452,2025.4,2024.8,1.23568475]
[1770476571513,0.05414452,2025.4,2024.8,0.001]
[1770476572409,1.28851057,2025.4,2024.8,0.001]
[1770476572609,1.91106916,2025.4,2024.8,0.001]
[1770476573012,0.05414452,2025.1,2024.2,1.23505114]
[1770476573338,1.91106916,2025.4,2024.2,4.4107677]
[1770476573339,0.67670311,2025.4,2024.2,4.4107677]
[1770476573512,1.28835088,2025.6,2024.4,7.39299096]
[1770476573716,3.21149958,2026.1,2024.5,3.17571656]
[1770476573944,0.05414452,2026.1,2024.8,3.17571656]
[1770476574130,1.28805225,2026.1,2024.8,3.17571656]
[1770476574438,1.28805225,2026.1,2024.9,4.41034543]
[1770476574738,1.97264364,2026.1,2025.0,1.19528277]
[1770476575207,5.55786161,2026.3,2025.0,1.19528277]
[1770476575208,0.62227107,2026.3,2025.3,3.17571656]
[1770476575408,1.23365408,2026.5,2025.3,11.17035825]
[1770476575608,0.05414452,2026.4,2025.3,11.17035825]
[1770476576036,1.23365408,2026.5,2025.3,11.17035825]
[1770476576233,1.23365408,2026.5,2025.4,3.17571656]
[1770476576410,0.05414452,2026.1,2025.4,1.23431969]
[1770476576606,0.05414452,2026.1,2025.2,3.83837419]
[1770476576813,0.05414452,2025.8,2024.9,1.23459231]
[1770476577038,0.05414452,2025.5,2024.8,1.23464699]
[1770476577222,0.05414452,2025.8,2024.8,1.23464699]
[1770476577620,0.05414452,2025.5,2024.3,3.17571656]
[1770476577942,3.21149958,2025.8,2024.9,1.23461555]
[1770476578144,3.21149958,2025.8,2025.0,1.23455279]
[1770476578145,0.05414452,2025.8,2025.0,1.23455279]
[1770476578313,0.05414452,2026.1,2024.9,4.93836143]
[1770476578810,1.23377584,2026.3,2025.1,3.17571656]
[1770476579013,1.23377584,2026.3,2025.2,1.16238742]
[1770476579226,0.002,2025.9,2025.2,1.16238742]
[1770476580320,0.002,2025.9,2024.9,8.40723101]
[1770476580520,0.002,2025.9,2025.0,0.45504364]
[1770476580737,0.002,2025.9,2025.1,0.45504364]
[1770476581042,0.002,2025.9,2024.9,4.93936143]
[1770476581248,0.002,2025.9,2025.0,0.45505633]
[1770476581418,0.002,2025.9,2025.1,0.45505633]
[1770476581749,0.002,2025.9,2024.9,0.001]
[1770476581750,0.05414452,2025.5,2024.9,0.001]
[1770476581914,0.05414452,2025.7,2024.9,0.001]
[1770476582456,1.23438502,2025.3,2024.9,0.001]
[1770476582831,1.23420221,2025.6,2024.9,0.001]
[1770476583031,0.93824397,2025.5,2024.9,0.001]
[1770476583426,0.05414452,2025.4,2024.9,0.001]
[1770476583931,1.23420221,2025.6,2024.9,0.001]
[1770476585266,1.23420221,2025.6,2024.9,1.75807728]
[1770476586163,1.23420221,2025.6,2024.9,0.001]
[1770476588758,1.23418572,2025.7,2024.9,0.001]
[1770476588992,1.23412375,2025.8,2024.9,0.001]
[1770476589452,1.23412375,2025.8,2024.9,1.1313324]
[1770476589647,1.23605542,2025.9,2024.9,1.1313324]
[1770476590542,0.002,2025.9,2025.0,3.64255542]
[1770476590742,0.002,2025.9,2025.1,1.69201652]
[1770476590941,0.002,2025.9,2025.2,0.45750871]
[1770476591140,0.002,2025.9,2025.2,0.97671974]
[1770476592345,0.002,2025.9,2025.3,0.45826528]
[1770476592667,0.002,2026.1,2025.5,11.17963675]
[1770476592876,0.002,2026.1,2025.6,1.69244247]
[1770476593082,0.002,2026.1,2025.7,0.45824026]
[1770476593258,0.002,2026.1,2025.8,0.45859717]
[1770476593459,4.93403129,2026.8,2025.9,0.4585865]
[1770476593460,1.23347148,2026.8,2025.9,0.4585865]